fUST/lending_fUST_20241102
["ID","MTS","AMOUNT","RATE_DAILY","PERIOD"]
[341153939,1730478643048,-500.0,0.00035616,5]
[341153940,1730478643057,-500.0,0.00035616,5]
[341153941,1730478643068,-500.0,0.00035616,5]
[341153944,1730478643078,-500.0,0.00035616,5]
[341153946,1730478643088,-500.0,0.00035616,5]
[341153947,1730478643098,-500.0,0.00035616,5]
[341153948,1730478643108,-500.0,0.00035616,5]
[341153949,1730478643117,-500.0,0.00035616,5]
[341153950,1730478643127,-506.40661331,0.00035616,5]
[341153952,1730478643136,-500.0,0.00035616,5]
[341153955,1730478643146,-500.0,0.00035616,5]
[341153957,1730478643155,-500.0,0.00035616,5]
[341153959,1730478643165,-500.0,0.00035616,5]
[341153960,1730478643174,-580.77,0.00035616,2]
[341153961,1730478643184,-500.0,0.00035616,5]
[341153962,1730478643197,-500.0,0.00035616,5]
[341153963,1730478643207,-500.0,0.00035616,5]
[341153964,1730478643217,-500.0,0.00035616,5]
[341153965,1730478643227,-500.0,0.00035616,5]
[341153966,1730478643236,-502.12051968,0.00035616,5]
[341153968,1730478643246,-500.0,0.00035616,5]
[341153970,1730478643256,-500.0,0.00035616,5]
[341153972,1730478643265,-500.0,0.00035616,5]
[341153974,1730478643275,-500.0,0.00035616,5]
[341153976,1730478643285,-333.09599109,0.00035616,5]
[341153977,1730478643295,-1596.45,0.00035616,5]
[341153978,1730478643304,-504.55218784,0.00035616,5]
[341153979,1730478643314,-500.0,0.00035616,5]
[341153980,1730478643323,-633.78109434,0.00035616,5]
[341153981,1730478643333,-500.0,0.00035616,5]
[341153982,1730478643343,-599.27569891,0.00035616,5]
[341153983,1730478643353,-500.0,0.00035616,5]
[341153984,1730478643363,-500.0,0.00035616,5]
[341153985,1730478643373,-502.32471511,0.00035616,5]
[341153986,1730478643383,-500.0,0.00035616,5]
[341153987,1730478643393,-540.58,0.00035616,5]
[341153988,1730478643403,-500.0,0.00035616,5]
[341153989,1730478643414,-3195.88,0.00035616,120]
[341153990,1730478643423,-507.53891017,0.00035616,5]
[341153992,1730478643433,-500.0,0.00035616,5]
[341153993,1730478643446,-503.08182075,0.00035616,5]
[341153994,1730478643459,-500.0,0.00035616,5]
[341153995,1730478643469,-500.0,0.00035616,5]
[341153996,1730478643479,-500.0,0.00035616,5]
[341153997,1730478643488,-502.81674764,0.00035616,5]
[341153998,1730478643497,-500.0,0.00035616,5]
[341153999,1730478643507,-1001.98234887,0.00035616,5]
[341154000,1730478643517,-500.0,0.00035616,5]
[341154001,1730478643527,-500.0,0.00035616,5]
[341154002,1730478643537,-500.0,0.00035616,5]
[341154003,1730478643551,-503.37083985,0.00035616,5]
[341154004,1730478643560,-500.0,0.00035616,5]
[341154005,1730478643570,-563.28211147,0.00035616,5]
[341154006,1730478643579,-500.0,0.00035616,5]
[341154007,1730478643589,-501.75055741,0.00035616,5]
[341154008,1730478643599,-500.0,0.00035616,5]
[341154009,1730478643609,-502.76970645,0.00035616,5]
[341154010,1730478643620,-521.90715971,0.00035616,5]
[341154011,1730478643629,-500.0,0.00035616,5]
[341154012,1730478643639,-541.83092042,0.00035616,5]
[341154013,1730478643649,-500.0,0.00035616,5]
[341154014,1730478643659,-511.369612,0.00035616,5]
[341154015,1730478643669,-586.03107679,0.00035616,5]
[341154016,1730478643678,-500.0,0.00035616,5]
[341154017,1730478643691,-259.41791452,0.00035616,5]
[341154018,1730478643701,-501.5084308,0.00035616,5]
[341154019,1730478643711,-568.09452346,0.00035616,5]
[341154020,1730478643721,-500.0,0.00035616,5]
[341154021,1730478643731,-501.7705837,0.00035616,5]
[341154022,1730478643741,-582.53427323,0.00035616,5]
[341154023,1730478643751,-500.0,0.00035616,5]
[341154024,1730478643761,-500.0,0.00035616,5]
[341154025,1730478643770,-500.0,0.00035616,5]
[341154026,1730478643781,-502.4779996,0.00035616,5]
[341154027,1730478643790,-500.0,0.00035616,5]
[341154028,1730478643800,-500.0,0.00035616,5]
[341154029,1730478643810,-505.97993476,0.00035616,5]
[341154030,1730478643822,-500.0,0.00035616,5]
[341154031,1730478643832,-501.57910054,0.00035616,5]
[341154032,1730478643843,-506.49164401,0.00035616,5]
[341154033,1730478643854,-501.0542681,0.00035616,5]
[341154034,1730478643864,-180.00134483,0.00035616,5]
[341154035,1730478643873,-500.0,0.00035616,5]
[341154036,1730478643883,-500.0,0.00035616,5]
[341154037,1730478643892,-500.0,0.00035616,5]
[341154038,1730478643907,-500.0,0.00035616,5]
[341154039,1730478643917,-500.0,0.00035616,5]
[341154040,1730478643927,-500.0,0.00035616,5]
[341154041,1730478643939,-500.0,0.00035616,5]
[341154042,1730478643949,-500.9742071,0.00035616,5]
[341154043,1730478643959,-511.6414991,0.00035616,5]
[341154044,1730478643970,-501.6427327,0.00035616,5]
[341154045,1730478643982,-501.9679505,0.00035616,5]
[341154046,1730478644147,-500.0,0.00035616,5]
[341154047,1730478644157,-502.78417092,0.00035616,5]
[341154048,1730478644167,-500.0,0.00035616,5]
[341154049,1730478644176,-500.0,0.00035616,5]
[341154050,1730478644188,-523.59919785,0.00035616,5]
[341154051,1730478644198,-507.84266072,0.00035616,5]
[341154052,1730478644209,-500.0,0.00035616,5]
[341154053,1730478644219,-577.37,0.00035616,5]
[341154054,1730478644229,-502.48180392,0.00035616,5]
[341154055,1730478644239,-500.0,0.00035616,5]
[341154056,1730478644249,-1000.0,0.00035616,30]
[341154057,1730478644259,-501.50307458,0.00035616,5]
[341154058,1730478644269,-500.0,0.00035616,5]
[341154059,1730478644279,-502.93369701,0.00035616,5]
[341154060,1730478644289,-554.17,0.00035616,5]
[341154061,1730478644298,-504.15681494,0.00035616,5]
[341154062,1730478644307,-519.34297907,0.00035616,5]
[341154063,1730478644317,-500.0,0.00035616,5]
[341154064,1730478644327,-500.0,0.00035616,5]
[341154065,1730478644336,-500.0,0.00035616,5]
[341154066,1730478644346,-500.0,0.00035616,5]
[341154067,1730478644355,-562.861813,0.00035616,5]
[341154068,1730478644365,-511.14036213,0.00035616,5]
[341154069,1730478644374,-500.0,0.00035616,5]
[341154070,1730478644383,-500.0,0.00035616,5]
[341154071,1730478644392,-502.35209331,0.00035616,5]
[341154072,1730478644402,-500.0,0.00035616,5]
[341154073,1730478644411,-500.0,0.00035616,5]
[341154074,1730478644421,-500.0,0.00035616,5]
[341154075,1730478644431,-500.0,0.00035616,5]
[341154076,1730478644444,-500.0,0.00035616,5]
[341154077,1730478644453,-501.78851315,0.00035616,5]
[341154078,1730478644463,-500.0,0.00035616,5]
[341154079,1730478644471,-500.0,0.00035616,5]
[341154080,1730478644482,-500.74696836,0.00035616,5]
[341154081,1730478644492,-501.33268515,0.00035616,5]
[341154082,1730478644502,-501.10112715,0.00035616,5]
[341154083,1730478644512,-504.11236122,0.00035616,5]
[341154084,1730478644526,-500.0,0.00035616,5]
[341154085,1730478644535,-501.13963556,0.00035616,5]
[341154086,1730478644547,-501.91582816,0.00035616,5]
[341154087,1730478644559,-511.20205833,0.00035616,5]
[341154088,1730478644569,-883.02,0.00035616,5]
[341154089,1730478644578,-500.0,0.00035616,5]
[341154090,1730478644588,-504.61938384,0.00035616,5]
[341154091,1730478644598,-6645.99,0.00035616,120]
[341154092,1730478644607,-501.2585806,0.00035616,5]
[341154093,1730478644617,-500.0,0.00035616,5]
[341154094,1730478644627,-504.51233049,0.00035616,5]
[341154095,1730478644636,-502.97526843,0.00035616,5]
[341154096,1730478644645,-503.28024373,0.00035616,5]
[341154097,1730478644654,-8.24216609,0.00035616,5]
[341154098,1730478644767,-494.61854112,0.00035616,5]
[341154099,1730478644779,-500.0,0.00035616,5]
[341154100,1730478644789,-500.0,0.00035616,5]
[341154101,1730478644800,-500.0,0.00035616,5]
[341154102,1730478644810,-501.40812782,0.00035616,5]
[341154103,1730478644821,-620.87035284,0.00035616,5]
[341154104,1730478644830,-500.0,0.00035616,5]
[341154105,1730478644839,-503.57431409,0.00035616,5]
[341154106,1730478644849,-500.0,0.00035616,5]
[341154107,1730478644859,-369.53366413,0.00035616,5]
[341154108,1730478644964,-130.46633587,0.00035616,5]
[341154109,1730478644975,-500.0,0.00035616,5]
[341154110,1730478644985,-111.20714172,0.00035616,5]
[341154137,1730478646701,-388.79285828,0.00035616,5]
[341154138,1730478646710,-500.0,0.00035616,5]
[341154139,1730478646720,-500.0,0.00035616,5]
[341154140,1730478646730,-500.0,0.00035616,5]
[341154141,1730478646742,-503.03569626,0.00035616,5]
[341154142,1730478646752,-592.01505192,0.00035616,5]
[341154143,1730478646762,-500.0,0.00035616,5]
[341154144,1730478646772,-500.0,0.00035616,5]
[341154145,1730478646781,-500.0,0.00035616,5]
[341154146,1730478646791,-363.90436271,0.00035616,5]
[341154147,1730478646801,-500.0,0.00035616,5]
[341154149,1730478646811,-500.0,0.00035616,5]
[341154151,1730478646820,-500.0,0.00035616,5]
[341154153,1730478646830,-504.40047921,0.00035616,5]
[341154155,1730478646840,-503.48742635,0.00035616,5]
[341154157,1730478646849,-500.0,0.00035616,5]
[341154159,1730478646858,-503.29479077,0.00035616,5]
[341154161,1730478646868,-500.0,0.00035616,5]
[341154163,1730478646877,-500.0,0.00035616,5]
[341154165,1730478646887,-500.0,0.00035616,5]
[341154167,1730478646896,-500.0,0.00035616,5]
[341154169,1730478646906,-500.0,0.00035616,5]
[341154171,1730478646916,-274.29791292,0.00035616,5]
[341154173,1730478646925,-543.22034995,0.00035616,5]
[341154175,1730478646936,-517.31522249,0.00035616,5]
[341154177,1730478646946,-507.48799268,0.00035616,5]
[341154179,1730478646956,-500.0,0.00035616,5]
[341154182,1730478646973,-500.0,0.00035616,5]
[341154184,1730478646985,-500.0,0.00035616,5]
[341154186,1730478646994,-503.98899412,0.00035616,5]
[341154188,1730478647005,-500.0,0.00035616,5]
[341154191,1730478647015,-500.0,0.00035616,5]
[341154193,1730478647025,-502.44602663,0.00035616,5]
[341154195,1730478647034,-500.0,0.00035616,5]
[341154197,1730478647045,-501.31139388,0.00035616,5]
[341154199,1730478647055,-502.22156431,0.00035616,5]
[341154201,1730478647065,-514.84184527,0.00035616,5]
[341154203,1730478647075,-500.0,0.00035616,5]
[341154205,1730478647085,-500.0,0.00035616,5]
[341154207,1730478647094,-500.0,0.00035616,5]
[341154209,1730478647104,-503.03336089,0.00035616,5]
[341154211,1730478647114,-609.83,0.00035616,5]
[341154213,1730478647123,-500.0,0.00035616,5]
[341154215,1730478647132,-503.48796427,0.00035616,5]
[341154217,1730478647142,-568.54239315,0.00035616,5]
[341154219,1730478647151,-500.89126708,0.00035616,5]
[341154221,1730478647162,-500.0,0.00035616,5]
[341154223,1730478647172,-500.0,0.00035616,5]
[341154225,1730478647182,-503.46657703,0.00035616,5]
[341154227,1730478647194,-504.20961025,0.00035616,5]
[341154229,1730478647204,-500.0,0.00035616,5]
[341154231,1730478647213,-500.0,0.00035616,5]
[341154233,1730478647222,-500.0,0.00035616,5]
[341154235,1730478647233,-500.0,0.00035616,5]
[341154237,1730478647245,-535.14646016,0.00035616,5]
[341154239,1730478647255,-500.0,0.00035616,5]
[341154241,1730478647265,-522.04147994,0.00035616,5]
[341154243,1730478647276,-2460.25,0.00035616,5]
[341154245,1730478647286,-500.0,0.00035616,5]
[341154248,1730478647297,-500.0,0.00035616,5]
[341154250,1730478647307,-500.0,0.00035616,5]
[341154252,1730478647317,-501.4203567,0.00035616,5]
[341154254,1730478647327,-500.0,0.00035616,5]
[341154256,1730478647337,-258.96758678,0.00035616,5]
[341154258,1730478647348,-507.51758741,0.00035616,5]
[341154260,1730478647358,-500.0,0.00035616,5]
[341154262,1730478647368,-995.18,0.00035616,5]
[341154264,1730478647378,-584.09293369,0.00035616,5]
[341154266,1730478647390,-422.6906987,0.00035616,5]
[341154268,1730478647400,-522.03147668,0.00035616,5]
[341154270,1730478647414,-500.0,0.00035616,5]
[341154272,1730478647424,-150.24482652,0.00035616,5]
[341154274,1730478647433,-503.03119491,0.00035616,5]
[341154277,1730478647445,-500.0,0.00035616,5]
[341154279,1730478647454,-526.63109941,0.00035616,5]
[341154281,1730478647464,-500.0,0.00035616,5]
[341154283,1730478647473,-500.0,0.00035616,5]
[341154285,1730478647484,-500.0,0.00035616,5]
[341154287,1730478647494,-500.0,0.00035616,5]
[341154289,1730478647504,-500.0,0.00035616,5]
[341154291,1730478647513,-503.44756433,0.00035616,5]
[341154293,1730478647524,-500.0,0.00035616,5]
[341154295,1730478647533,-505.81782754,0.00035616,5]
[341154297,1730478647544,-11551.5,0.00035616,5]
[341154299,1730478647556,-500.0,0.00035616,5]
[341154301,1730478647566,-500.0,0.00035616,5]
[341154303,1730478647575,-500.0,0.00035616,5]
[341154305,1730478647585,-500.0,0.00035616,5]
[341154307,1730478647598,-500.0,0.00035616,5]
[341154309,1730478647608,-505.04676991,0.00035616,5]
[341154311,1730478647619,-500.0,0.00035616,5]
[341154313,1730478647629,-502.55463266,0.00035616,5]
[341154315,1730478647638,-500.0,0.00035616,5]
[341154317,1730478647648,-500.0,0.00035616,5]
[341154319,1730478647658,-503.73402057,0.00035616,5]
[341154321,1730478647667,-506.16476133,0.00035616,5]
[341154324,1730478647678,-500.0,0.00035616,5]
[341154325,1730478647689,-500.0,0.00035616,5]
[341154328,1730478647700,-500.0,0.00035616,5]
[341154330,1730478647709,-500.0,0.00035616,5]
[341154332,1730478647720,-500.0,0.00035616,5]
[341154334,1730478647731,-500.0,0.00035616,5]
[341154336,1730478647741,-500.0,0.00035616,5]
[341154338,1730478647752,-500.0,0.00035616,5]
[341154340,1730478647762,-500.0,0.00035616,5]
[341154342,1730478647772,-500.0,0.00035616,5]
[341154344,1730478647782,-500.0,0.00035616,5]
[341154346,1730478647792,-500.0,0.00035616,5]
[341154348,1730478647802,-501.73583024,0.00035616,5]
[341154350,1730478647812,-502.15345898,0.00035616,5]
[341154352,1730478647821,-508.86487842,0.00035616,5]
[341154354,1730478647831,-513.26149353,0.00035616,5]
[341154356,1730478647841,-500.0,0.00035616,5]
[341154358,1730478647851,-500.0,0.00035616,5]
[341154360,1730478647860,-500.0,0.00035616,5]
[341154362,1730478647869,-661.8,0.00035616,5]
[341154364,1730478647879,-500.0,0.00035616,5]
[341154366,1730478647889,-510.42418461,0.00035616,5]
[341154368,1730478647899,-500.0,0.00035616,5]
[341154370,1730478647909,-504.39993461,0.00035616,5]
[341154372,1730478647919,-144.2279705,0.00035616,5]
[341154575,1730478688946,164.160334,0.00013973,2]
[341154584,1730479201089,165.257119,0.00013973,2]
[341154917,1730479701499,164.540637,0.00013973,2]
[341154994,1730479831813,-151.0,0.0003,120]
[341154996,1730479831823,-211.4835,0.0003,2]
[341154998,1730479831833,-154.26023396,0.00030886,2]
[341155000,1730479831844,-151.0,0.00030986,120]
[341155002,1730479831853,-32.40626604,0.00031086,2]
[341155004,1730479831864,-1209.70208521,0.00031086,2]
[341155119,1730479837992,-1360.95177522,0.00031086,2]
[341155232,1730479839994,-28.57640453,0.00031086,2]
[341155233,1730479840004,-461.83027822,0.00031251,2]
[341155331,1730479843706,-2538.16972178,0.00031251,2]
[341155334,1730479843716,-166.666666,0.00031344,2]
[341155336,1730479843726,-288.3538285,0.00031382,2]
[341155351,1730479843862,-166.12009,0.00031425,2]
[341155353,1730479843873,-170.5260226,0.00031442,2]
[341155355,1730479843883,-361.0,0.00031765,2]
[341155357,1730479843893,-400.0,0.00031765,2]
[341155359,1730479843904,-2631.636531,0.0003177,2]
[341155361,1730479843914,-175.4748678,0.00031898,2]
[341155363,1730479843926,-99.50155732,0.00031973,120]
[341155544,1730480198817,165.257119,0.00013973,2]
[341155546,1730480321371,703.64,0.0002018,2]
[341155547,1730480394762,5732.0,0.0001,3]
[341155548,1730480800924,163.773391,0.00013973,2]
[341155761,1730481038138,-163.0,0.00022,2]
[341155762,1730481038150,-163.0,0.00023014,2]
[341155763,1730481038160,-163.0,0.00028997,2]
[341155764,1730481038169,-166.666666,0.00030439,2]
[341155765,1730481038181,-877.212177,0.00031043,2]
[341155766,1730481038192,-154.26023396,0.00031238,2]
[341155767,1730481038203,-7034.34813188,0.00031263,2]
[341155768,1730481038213,-400.0,0.00031267,2]
[341155769,1730481038223,-166.453194,0.00031285,2]
[341155770,1730481038233,-168.536748,0.00031337,2]
[341155771,1730481038243,-764.74282108,0.00031652,2]
[341155788,1730481042936,-2123.13615849,0.00031652,2]
[341155789,1730481042947,-4146.46915232,0.00031652,2]
[341155790,1730481042957,-877.212177,0.00031728,2]
[341155791,1730481042966,-51.49844268,0.00031973,120]
[341155792,1730481042975,-877.212177,0.00032413,2]
[341155793,1730481042987,-3775.186531,0.00032875,2]
[341155835,1730481942022,163.773391,0.00013973,2]
[341155850,1730482123912,150.0,2.75e-05,120]
[341155852,1730482128912,150.0,0.0002102,62]
[341155938,1730482232052,-283.3941827,0.00022,2]
[341155939,1730482232062,-166.99556077,0.0003,2]
[341155940,1730482232074,-168.536748,0.00031204,2]
[341155941,1730482232083,-166.453194,0.00031781,2]
[341155942,1730482232093,-1721.47083395,0.000328,5]
[341155943,1730482232112,-1278.52916605,0.000328,5]
[341155944,1730482232122,-400.0,0.00032876,2]
[341155945,1730482232131,-4372.715675,0.00032877,120]
[341155946,1730482232140,-151.0,0.00032959,120]
[341155947,1730482232150,-7279.51913548,0.00033,12]
[341155948,1730482232162,-650.26151516,0.00033,12]
[341155949,1730482232174,-2070.21934936,0.00033,12]
[341155950,1730482232183,-200.07,0.00033149,30]
[341155951,1730482232193,-200.1,0.00033162,2]
[341155952,1730482232202,-2500.00000783,0.00033162,7]
[341155953,1730482232212,-156.79,0.0003349,2]
[341155954,1730482232221,-5000.0,0.00033499,120]
[341155955,1730482232231,-5000.0,0.000335,7]
[341155956,1730482232240,-155.222,0.000335,35]
[341155957,1730482232250,-155.173,0.0003374,120]
[341155958,1730482232259,-400.09890626,0.0003381,2]
[341155959,1730482232268,-3000.0,0.000339,17]
[341155960,1730482232278,-3000.0,0.0003391,17]
[341155961,1730482232286,-5000.0,0.00033918,120]
[341155962,1730482232295,-333.62360305,0.00033918,7]
[341155963,1730482232304,-3000.0,0.0003392,17]
[341155964,1730482232313,-5006.301884,0.0003393,17]
[341155965,1730482232324,-151.0,0.00033945,120]
[341155966,1730482232333,-5000.0,0.00034,10]
[341155967,1730482232342,-5000.0,0.000345,15]
[341155968,1730482232352,-93670.95552991,0.000348,120]
[341155969,1730482232361,-400.09890619,0.00034823,2]
[341155970,1730482232371,-801.54932971,0.000349,2]
[341155971,1730482232381,-151.0,0.00034932,120]
[341155972,1730482232390,-1925.67788016,0.00034969,120]
[341155973,1730482232399,-500.79160373,0.00034973,5]
[341155974,1730482232408,-500.98730976,0.00034973,5]
[341155975,1730482232418,-501.23033179,0.00034973,5]
[341155976,1730482232427,-500.0,0.00034973,5]
[341155977,1730482232436,-501.09417111,0.00034973,5]
[341155978,1730482232445,-500.0,0.00034973,2]
[341155979,1730482232454,-500.0,0.00034989,7]
[341155980,1730482232463,-156.79,0.0003499,2]
[341155981,1730482232473,-807.64,0.0003499,3]
[341155982,1730482232483,-162.18,0.0003499,10]
[341155983,1730482232492,-309.28,0.0003499,10]
[341155984,1730482232501,-257.73,0.0003499,10]
[341155985,1730482232511,-500.0,0.00034999,7]
[341155986,1730482232520,-500.0,0.00034999,7]
[341155987,1730482232529,-323.00001323,0.00034999,7]
[341155988,1730482232538,-41899.2127397,0.00035,7]
[341155989,1730482232550,-2064.5055936,0.00035,7]
[341155990,1730482232562,-466.0,0.00035,7]
[341155991,1730482232576,-5570.2816667,0.00035,7]
[341155992,1730482232585,-50000.0,0.00035,30]
[341155993,1730482232594,-11656.88431273,0.00035,5]
[341155994,1730482232605,-22011.11568727,0.00035,5]
[341155995,1730482232615,-4413.45273454,0.00035,2]
[341156000,1730482238265,-185.72084523,0.00034499,7]
[341156001,1730482238274,-331.34204526,0.00034499,7]
[341156002,1730482238285,-185.44057247,0.00034499,7]
[341156019,1730482451534,162.7983628,0.00013973,2]
[341156021,1730482745489,-3279.536756,0.00032877,120]
[341156022,1730482745514,-400.0,0.00033159,2]
[341156023,1730482745537,-400.0,0.00033159,2]
[341156024,1730482745559,-15940.29,0.0003316,120]
[341156025,1730482745584,-150.0,0.000339,17]
[341156026,1730482745606,-15940.29,0.00034498,120]
[341156027,1730482745628,-222.41573536,0.00034499,7]
[341156028,1730482745650,-161.629946,0.00034517,2]
[341156029,1730482745672,-378.29334,0.00034517,2]
[341156030,1730482745696,-270.392827,0.00034517,2]
[341156031,1730482745718,-5721.7814576,0.00034526,2]
[341156032,1730482745740,-500.0,0.00034898,2]
[341156033,1730482745764,-257.9155032,0.00034898,7]
[341156034,1730482745785,-263.1020161,0.00034898,7]
[341156035,1730482745807,-500.0,0.00034898,2]
[341156036,1730482745831,-500.0,0.00034898,7]
[341156037,1730482745856,-203.19306386,0.00034898,7]
[341156038,1730482745878,-500.0,0.00034898,2]
[341156039,1730482745903,-500.0,0.00034898,2]
[341156040,1730482745926,-500.0,0.00034898,2]
[341156041,1730482745948,-208.39363134,0.00034898,2]
[341156042,1730482745970,-3761.02204038,0.00034899,2]
[341156043,1730482745992,-15940.29,0.00034899,120]
[341156044,1730482746023,-1000.0,0.000349,2]
[341156045,1730482746045,-378.29334,0.00034949,2]
[341156046,1730482746067,-270.392827,0.00034949,2]
[341156047,1730482746088,-539.97458819,0.0003497,10]
[341156048,1730482746109,-586.52235018,0.00034973,2]
[341156049,1730482746130,-500.0,0.00034973,5]
[341156050,1730482746273,-501.17149935,0.00034973,5]
[341156051,1730482746295,-186.20020894,0.00034973,2]
[341156052,1730482746317,-500.0,0.00034973,2]
[341156053,1730482746338,-500.0,0.00034973,5]
[341156054,1730482746360,-214.78,0.00034988,10]
[341156055,1730482746383,-178.98,0.00034988,10]
[341156056,1730482746404,-894.92,0.00034988,10]
[341156057,1730482746426,-500.0,0.00034997,7]
[341156058,1730482746449,-500.0,0.00034997,7]
[341156059,1730482746470,-430.32775863,0.00034997,7]
[341156060,1730482746491,-15940.29,0.00034998,120]
[341156061,1730482746517,-15940.29,0.00034998,120]
[341156062,1730482746538,-15940.29,0.00034998,120]
[341156063,1730482746560,-15940.29,0.00034998,120]
[341156064,1730482746581,-15940.29,0.00034998,120]
[341156065,1730482746602,-15940.29,0.00034998,120]
[341156066,1730482746625,-15940.29,0.00034998,120]
[341156067,1730482746651,-15940.29,0.00034998,120]
[341156068,1730482746672,-15940.29,0.00034998,120]
[341156069,1730482746695,-15940.29,0.00034998,120]
[341156070,1730482746719,-15940.29,0.00034998,120]
[341156071,1730482746742,-15940.29,0.00034998,120]
[341156072,1730482746766,-15940.29,0.00034998,120]
[341156073,1730482746788,-15940.29,0.00034998,120]
[341156074,1730482746811,-15940.29,0.00034998,120]
[341156075,1730482746837,-15940.29,0.00034998,120]
[341156076,1730482746862,-15940.29,0.00034998,120]
[341156077,1730482746884,-15940.29,0.00034998,120]
[341156078,1730482746909,-15940.29,0.00034998,120]
[341156079,1730482746930,-15940.29,0.00034998,120]
[341156080,1730482746953,-15940.43642642,0.00034998,120]
[341156081,1730482746974,-3431.75061354,0.00034999,2]
[341156082,1730482746996,-151.0,0.00034999,14]
[341156083,1730482747018,-151.0,0.00034999,14]
[341156084,1730482747039,-151.0,0.00034999,14]
[341156085,1730482747061,-151.0,0.00034999,14]
[341156086,1730482747082,-151.0,0.00034999,14]
[341156087,1730482747103,-245.0,0.00034999,14]
[341156088,1730482747126,-151.0,0.00034999,14]
[341156089,1730482747148,-151.0,0.00034999,14]
[341156090,1730482747171,-151.0,0.00034999,14]
[341156091,1730482747192,-300.198875,0.00034999,14]
[341156092,1730482747214,-186.743222,0.00034999,14]
[341156093,1730482747236,-151.0,0.00034999,2]
[341156094,1730482747258,-151.0,0.00034999,2]
[341156095,1730482747279,-151.0,0.00034999,2]
[341156096,1730482747300,-151.0,0.00034999,2]
[341156097,1730482747323,-170.383868,0.00034999,2]
[341156098,1730482747345,-151.0,0.00034999,14]
[341156099,1730482747367,-151.0,0.00034999,14]
[341156100,1730482747388,-151.0,0.00034999,14]
[341156101,1730482747410,-151.0,0.00034999,14]
[341156102,1730482747432,-151.0,0.00034999,14]
[341156103,1730482747454,-196672.57810591,0.00035,2]
[341156107,1730482948958,168.089648,0.00013973,2]
[341156190,1730483432376,-2459.652567,0.00032877,120]
[341156191,1730483432386,-400.0,0.00033156,2]
[341156192,1730483432396,-500.0,0.00033157,4]
[341156193,1730483432405,-974.99,0.00033157,4]
[341156194,1730483432415,-500.0,0.00033157,4]
[341156195,1730483432423,-500.0,0.00033157,4]
[341156196,1730483432433,-500.0,0.00033157,4]
[341156197,1730483432444,-11687.59,0.00033157,4]
[341156198,1730483432453,-500.0,0.00033157,4]
[341156199,1730483432462,-500.0,0.00033157,4]
[341156200,1730483432472,-500.0,0.00033157,4]
[341156201,1730483432485,-14553.09,0.00033157,3]
[341156202,1730483432496,-1467.81,0.00033157,4]
[341156203,1730483432506,-987.71,0.00033157,4]
[341156204,1730483432516,-504.33232519,0.00033157,4]
[341156205,1730483432525,-500.0,0.00033157,4]
[341156206,1730483432534,-500.0,0.00033157,4]
[341156207,1730483432547,-500.0,0.00033158,4]
[341156208,1730483432556,-500.0,0.00033158,4]
[341156209,1730483432566,-500.0,0.00033158,4]
[341156210,1730483432575,-500.0,0.00033158,4]
[341156211,1730483432584,-500.0,0.00033158,4]
[341156212,1730483432594,-500.0,0.00033158,4]
[341156213,1730483432603,-500.0,0.00033158,4]
[341156214,1730483432613,-187.62608891,0.00033158,4]
[341156231,1730483438318,-185.72084523,0.00033157,7]
[341156233,1730483438327,-516.78261773,0.00033157,7]
[341156235,1730483438337,-300.9326257,0.00033157,2]
[341156237,1730483438346,-500.0,0.00033157,4]